[Event "*** Titled Tuesday Blitz"]
[Site "Chess.com"]
[Date "2019.03.05"]
[Round "5"]
[White "Orange_Ghost"]
[Black "Ar4uha"]
[Result "1-0"]
[WhiteElo "2559"]
[BlackElo "2477"]
[TimeControl "180+2"]
[EndTime "14:13:51 PST"]
[Termination "Orange_Ghost won by resignation"]

1. d4 {[%clk 0:03:01.9]} 1... Nf6 {[%clk 0:03:00]} 2. c4 {[%clk 0:03:02.7]} 2...
e6 {[%clk 0:02:57.8]} 3. Nc3 {[%clk 0:03:02.6]} 3... Bb4 {[%clk 0:02:58.7]} 4.
e3 {[%clk 0:03:03.4]} 4... O-O {[%clk 0:02:58.8]} 5. Ne2 {[%clk 0:03:03.8]} 5...
Re8 {[%clk 0:02:59.9]} 6. a3 {[%clk 0:03:02.3]} 6... Bf8 {[%clk 0:03:01.4]} 7.
Ng3 {[%clk 0:03:02.7]} 7... d5 {[%clk 0:03:02.3]} 8. cxd5 {[%clk 0:03:03.8]}
8... exd5 {[%clk 0:03:04.2]} 9. b4 {[%clk 0:03:04.7]} 9... a5 {[%clk 0:02:52.8]}
10. b5 {[%clk 0:03:04.6]} 10... Nbd7 {[%clk 0:02:51.2]} 11. Be2 {[%clk
0:03:00.4]} 11... g6 {[%clk 0:02:49.6]} 12. O-O {[%clk 0:02:59.9]} 12... h5
{[%clk 0:02:50.8]} 13. Bf3 {[%clk 0:03:00.6]} 13... h4 {[%clk 0:02:49.8]} 14.
Nge2 {[%clk 0:03:01.6]} 14... Nb6 {[%clk 0:02:50.2]} 15. g3 {[%clk 0:02:54.6]}
15... Ne4 {[%clk 0:02:48.4]} 16. Qc2 {[%clk 0:02:46.6]} 16... Bf5 {[%clk
0:02:44.2]} 17. g4 {[%clk 0:02:29.7]} 17... Nxc3 {[%clk 0:02:43.2]} 18. gxf5
{[%clk 0:02:29.9]} 18... Nxe2+ {[%clk 0:02:40.7]} 19. Qxe2 {[%clk 0:02:25.3]}
19... Qg5+ {[%clk 0:02:41.1]} 20. Kh1 {[%clk 0:02:15.4]} 20... Qxf5 {[%clk
0:02:41.6]} 21. Bg4 {[%clk 0:02:06]} 21... Qf6 {[%clk 0:02:40.2]} 22. Rg1 {[%clk
0:02:02.4]} 22... Bd6 {[%clk 0:02:40.1]} 23. Qf3 {[%clk 0:01:42.5]} 23... Qxf3+
{[%clk 0:02:38.1]} 24. Bxf3 {[%clk 0:01:44.4]} 24... Kg7 {[%clk 0:02:39]} 25. a4
{[%clk 0:01:39.7]} 25... f5 {[%clk 0:02:34.4]} 26. Ra2 {[%clk 0:01:34.9]} 26...
Kf6 {[%clk 0:02:34.9]} 27. h3 {[%clk 0:01:29.8]} 27... Rac8 {[%clk 0:02:32.8]}
28. Bd2 {[%clk 0:01:23.4]} 28... Nc4 {[%clk 0:02:30.5]} 29. Bxd5 {[%clk
0:01:19.7]} 29... Nxd2 {[%clk 0:02:29.6]} 30. Rxd2 {[%clk 0:01:21.6]} 30... b6
{[%clk 0:02:31.5]} 31. Rc2 {[%clk 0:01:19.9]} 31... g5 {[%clk 0:02:31.9]} 32.
Kg2 {[%clk 0:01:18.5]} 32... g4 {[%clk 0:02:28.3]} 33. Rgc1 {[%clk 0:01:14]}
33... Kg5 {[%clk 0:02:22.9]} 34. Rc6 {[%clk 0:01:07.3]} 34... Rcd8 {[%clk
0:02:22.9]} 35. Ba2 {[%clk 0:01:03.1]} 35... f4 {[%clk 0:02:18.2]} 36. exf4+
{[%clk 0:00:45.5]} 36... Bxf4 {[%clk 0:02:15]} 37. Rd1 {[%clk 0:00:33.3]} 37...
Re2 {[%clk 0:02:05.2]} 38. Bc4 {[%clk 0:00:28.2]} 38... gxh3+ {[%clk 0:02:03.2]}
39. Kf3 {[%clk 0:00:26.4]} 39... Rde8 {[%clk 0:01:31.4]} 40. Bxe2 {[%clk
0:00:20.9]} 40... h2 {[%clk 0:01:29.9]} 41. Rh1 {[%clk 0:00:21.6]} 41... h3
{[%clk 0:01:30.7]} 42. Bd3 {[%clk 0:00:21.7]} 42... Bd6 {[%clk 0:01:23.3]} 43.
Rxd6 {[%clk 0:00:20.8]} 43... cxd6 {[%clk 0:01:25.2]} 44. Rxh2 {[%clk
0:00:22.7]} 44... Rf8+ {[%clk 0:01:20.8]} 45. Kg3 {[%clk 0:00:23.4]} 45... Rf4
{[%clk 0:01:22.7]} 46. d5 {[%clk 0:00:19.4]} 46... Rg4+ {[%clk 0:01:09.3]} 47.
Kxh3 {[%clk 0:00:18.7]} 47... Rxa4 {[%clk 0:01:11.2]} 48. Kg2 {[%clk 0:00:18.4]}
48... Rd4 {[%clk 0:01:09.1]} 49. Be2 {[%clk 0:00:18.4]} 49... a4 {[%clk
0:01:07.4]} 50. Rh8 {[%clk 0:00:16.4]} 50... Kf6 {[%clk 0:01:03.3]} 51. Ra8
{[%clk 0:00:16.4]} 51... Ke5 {[%clk 0:01:04.7]} 52. Bf3 {[%clk 0:00:16.7]} 52...
Rb4 {[%clk 0:01:03.6]} 53. Ra6 {[%clk 0:00:16.6]} 53... Rxb5 {[%clk 0:01:03.1]}
54. Rxa4 {[%clk 0:00:18.1]} 54... Rb2 {[%clk 0:01:05]} 55. Re4+ {[%clk
0:00:18.4]} 55... Kf5 {[%clk 0:01:06.6]} 56. Rc4 {[%clk 0:00:18.7]} 56... b5
{[%clk 0:01:07.4]} 57. Rc6 {[%clk 0:00:20.2]} 57... Ke5 {[%clk 0:01:08.6]} 58.
Rb6 {[%clk 0:00:21.7]} 58... b4 {[%clk 0:01:09.9]} 59. Kg3 {[%clk 0:00:23]}
59... Rb1 {[%clk 0:01:11.3]} 60. Bg2 {[%clk 0:00:24]} 60... b3 {[%clk
0:01:10.2]} 61. f4+ {[%clk 0:00:24.8]} 61... Kd4 {[%clk 0:01:11.6]} 62. Rxd6
{[%clk 0:00:25.2]} 62... Kc5 {[%clk 0:01:00.8]} 63. Rc6+ {[%clk 0:00:25.3]}
63... Kb5 {[%clk 0:01:02.3]} 64. Rc8 {[%clk 0:00:26.1]} 64... b2 {[%clk
0:01:03.5]} 65. d6 {[%clk 0:00:24.9]} 65... Rd1 {[%clk 0:00:57.2]} 66. Rb8+
{[%clk 0:00:24.6]} 66... Kc5 {[%clk 0:00:57.2]} 67. Rxb2 {[%clk 0:00:25.8]}
67... Kxd6 {[%clk 0:00:59.1]} 68. Bf3 {[%clk 0:00:25.1]} 68... Rg1+ {[%clk
0:00:59.8]} 69. Kf2 {[%clk 0:00:26.1]} 69... Ke6 {[%clk 0:01:01.7]} 1-0

[Event "*** Titled Tuesday Blitz"]
[Site "Chess.com"]
[Date "2019.03.05"]
[Round "5"]
[White "SF-96"]
[Black "HanSchut"]
[Result "1-0"]
[WhiteElo "2577"]
[BlackElo "2323"]
[TimeControl "180+2"]
[EndTime "14:13:52 PST"]
[Termination "SF-96 won by resignation"]

1. e4 {[%clk 0:03:01.3]} 1... c5 {[%clk 0:03:00.4]} 2. Nf3 {[%clk 0:03:02.4]}
2... d6 {[%clk 0:03:01.8]} 3. d4 {[%clk 0:03:01.6]} 3... cxd4 {[%clk 0:03:03.7]}
4. Nxd4 {[%clk 0:03:03.2]} 4... Nf6 {[%clk 0:03:05.4]} 5. Nc3 {[%clk 0:03:04.4]}
5... a6 {[%clk 0:03:06.9]} 6. Be3 {[%clk 0:03:05.3]} 6... e5 {[%clk 0:03:07.9]}
7. Nf3 {[%clk 0:03:06.6]} 7... Qc7 {[%clk 0:03:03.4]} 8. a4 {[%clk 0:03:07.3]}
8... Be7 {[%clk 0:03:02.5]} 9. a5 {[%clk 0:03:04.4]} 9... Be6 {[%clk 0:03:03.3]}
10. Nd5 {[%clk 0:02:53.8]} 10... Nxd5 {[%clk 0:02:56.2]} 11. exd5 {[%clk
0:02:55]} 11... Bg4 {[%clk 0:02:50.3]} 12. Be2 {[%clk 0:02:38]} 12... O-O {[%clk
0:02:37.2]} 13. Bb6 {[%clk 0:02:16.2]} 13... Qc8 {[%clk 0:02:32.6]} 14. Ra4
{[%clk 0:02:13.1]} 14... Nd7 {[%clk 0:02:20.1]} 15. Rc4 {[%clk 0:01:51.5]} 15...
Qe8 {[%clk 0:02:13.7]} 16. Rxg4 {[%clk 0:01:50.7]} 16... f5 {[%clk 0:02:10.1]}
17. Rc4 {[%clk 0:01:50.3]} 17... Nxb6 {[%clk 0:02:10.5]} 18. axb6 {[%clk
0:01:51.2]} 18... g5 {[%clk 0:02:00.9]} 19. Rc7 {[%clk 0:01:45.9]} 19... Rb8
{[%clk 0:01:53.4]} 20. Nd2 {[%clk 0:01:42.8]} 20... Bd8 {[%clk 0:01:53.3]} 21.
Bh5 {[%clk 0:01:37.7]} 21... Qb5 {[%clk 0:01:41.9]} 22. Rc3 {[%clk 0:01:02.6]}
22... Bxb6 {[%clk 0:01:14.5]} 23. Rb3 {[%clk 0:01:00.6]} 23... Qc5 {[%clk
0:01:15]} 24. O-O {[%clk 0:00:59.6]} 24... Ba7 {[%clk 0:01:12.2]} 25. Nf3 {[%clk
0:00:49.7]} 25... h6 {[%clk 0:01:10]} 26. Rc3 {[%clk 0:00:44.3]} 26... Qb5
{[%clk 0:01:07.2]} 27. b3 {[%clk 0:00:31.6]} 27... Qd7 {[%clk 0:00:56.1]} 28.
Qd2 {[%clk 0:00:25]} 28... Qg7 {[%clk 0:00:35.2]} 29. Rc4 {[%clk 0:00:15.8]}
29... Rbc8 {[%clk 0:00:30.8]} 30. Qc3 {[%clk 0:00:15.2]} 30... Rxc4 {[%clk
0:00:31]} 31. Qxc4 {[%clk 0:00:16.7]} 31... g4 {[%clk 0:00:19.7]} 32. Nh4 {[%clk
0:00:18]} 32... Qg5 {[%clk 0:00:20.3]} 33. Ng6 {[%clk 0:00:19.4]} 33... Qxh5
{[%clk 0:00:19.5]} 34. Nxf8 {[%clk 0:00:19.7]} 34... Kxf8 {[%clk 0:00:20.9]} 35.
Qc8+ {[%clk 0:00:20.9]} 35... Qe8 {[%clk 0:00:22.2]} 36. Qxf5+ {[%clk
0:00:20.1]} 36... Kg7 {[%clk 0:00:19.3]} 37. Qxg4+ {[%clk 0:00:20.7]} 37... Kh7
{[%clk 0:00:20.8]} 38. Qf5+ {[%clk 0:00:19.5]} 38... Kh8 {[%clk 0:00:21.1]} 39.
Qf6+ {[%clk 0:00:18.2]} 39... Kh7 {[%clk 0:00:21.8]} 40. Qxd6 {[%clk 0:00:18.1]}
40... e4 {[%clk 0:00:22.9]} 41. Qe6 {[%clk 0:00:18.8]} 41... Qxe6 {[%clk
0:00:07.7]} 42. dxe6 {[%clk 0:00:19.9]} 42... Kg6 {[%clk 0:00:07.8]} 43. Re1
{[%clk 0:00:19.7]} 43... e3 {[%clk 0:00:09.1]} 44. fxe3 {[%clk 0:00:20.7]} 44...
Kf6 {[%clk 0:00:10.5]} 45. Kf2 {[%clk 0:00:22]} 45... Kxe6 {[%clk 0:00:11.9]}
46. Kf3 {[%clk 0:00:23.7]} 46... Ke5 {[%clk 0:00:12.6]} 47. Rd1 {[%clk
0:00:25.1]} 47... Ke6 {[%clk 0:00:12.8]} 48. Ke4 {[%clk 0:00:26.4]} 48... Bc5
{[%clk 0:00:13.1]} 49. Rd5 {[%clk 0:00:27.1]} 49... Ba3 {[%clk 0:00:12.2]} 50.
Rh5 {[%clk 0:00:27.4]} 50... Bf8 {[%clk 0:00:10.4]} 51. g4 {[%clk 0:00:29]}
51... Kf6 {[%clk 0:00:10.2]} 52. h4 {[%clk 0:00:28.7]} 52... Kg6 {[%clk
0:00:11.4]} 53. Rd5 {[%clk 0:00:29.1]} 53... b6 {[%clk 0:00:09.8]} 54. Ke5
{[%clk 0:00:30]} 54... a5 {[%clk 0:00:10.3]} 55. Ke6 {[%clk 0:00:31.1]} 55...
Kh7 {[%clk 0:00:08.2]} 56. h5 {[%clk 0:00:30.8]} 56... Ba3 {[%clk 0:00:06.5]}
57. Rd7+ {[%clk 0:00:29.5]} 57... Kg8 {[%clk 0:00:04.9]} 58. e4 {[%clk
0:00:31.1]} 58... Bb2 {[%clk 0:00:05.8]} 59. e5 {[%clk 0:00:32]} 59... Bd4
{[%clk 0:00:07]} 60. Rxd4 {[%clk 0:00:32.6]} 1-0

[Event "*** Titled Tuesday Blitz"]
[Site "Chess.com"]
[Date "2019.03.05"]
[Round "5"]
[White "jflup"]
[Black "tunadrol"]
[Result "1-0"]
[WhiteElo "2364"]
[BlackElo "2489"]
[TimeControl "180+2"]
[EndTime "14:13:56 PST"]
[Termination "jflup won by checkmate"]

1. e4 {[%clk 0:03:01.7]} 1... c5 {[%clk 0:03:00.6]} 2. Nc3 {[%clk 0:03:01.2]}
2... d6 {[%clk 0:03:01.2]} 3. f4 {[%clk 0:02:57.6]} 3... g6 {[%clk 0:02:58]} 4.
Nf3 {[%clk 0:02:58]} 4... Bg7 {[%clk 0:02:58.9]} 5. Bb5+ {[%clk 0:02:58.6]} 5...
Bd7 {[%clk 0:02:56.3]} 6. Bc4 {[%clk 0:02:58.1]} 6... Nc6 {[%clk 0:02:53.9]} 7.
d3 {[%clk 0:02:55.8]} 7... Nf6 {[%clk 0:02:52.6]} 8. f5 {[%clk 0:02:55.8]} 8...
gxf5 {[%clk 0:02:41.3]} 9. O-O {[%clk 0:02:56.2]} 9... fxe4 {[%clk 0:02:05.4]}
10. dxe4 {[%clk 0:02:57.2]} 10... O-O {[%clk 0:02:01.8]} 11. Qe1 {[%clk
0:02:58]} 11... Nd4 {[%clk 0:01:56.9]} 12. Qh4 {[%clk 0:02:34.4]} 12... b5
{[%clk 0:01:18.8]} 13. Bd5 {[%clk 0:02:20]} 13... Nxd5 {[%clk 0:01:18.6]} 14.
Nxd5 {[%clk 0:01:53.6]} 14... e6 {[%clk 0:01:19.2]} 15. Ng5 {[%clk 0:01:49.1]}
15... h6 {[%clk 0:00:51.5]} 16. Nf6+ {[%clk 0:01:45.4]} 16... Kh8 {[%clk
0:00:17.2]} 17. Kh1 {[%clk 0:01:01.3]} 17... Nf5 {[%clk 0:00:17.6]} 18. exf5
{[%clk 0:00:51.7]} 18... Qxf6 {[%clk 0:00:18.4]} 19. Qg3 {[%clk 0:00:27.5]}
19... exf5 {[%clk 0:00:11.8]} 20. Nh3 {[%clk 0:00:28.5]} 20... Qg6 {[%clk
0:00:11.3]} 21. Qf2 {[%clk 0:00:18.8]} 21... Bc6 {[%clk 0:00:11.4]} 22. Nf4
{[%clk 0:00:19.4]} 22... Qg4 {[%clk 0:00:12.1]} 23. h3 {[%clk 0:00:18.8]} 23...
Bd4 {[%clk 0:00:10]} 24. hxg4 {[%clk 0:00:18.9]} 24... Bxf2 {[%clk 0:00:10.5]}
25. Rxf2 {[%clk 0:00:19.9]} 25... fxg4 {[%clk 0:00:11.9]} 26. Kh2 {[%clk
0:00:20.2]} 26... f5 {[%clk 0:00:12.2]} 27. Kg3 {[%clk 0:00:21.4]} 27... Be4
{[%clk 0:00:13.2]} 28. b3 {[%clk 0:00:21.6]} 28... Kg7 {[%clk 0:00:14.2]} 29.
Bb2+ {[%clk 0:00:22.8]} 29... Kf7 {[%clk 0:00:14.9]} 30. Rd1 {[%clk 0:00:22.1]}
30... Ke7 {[%clk 0:00:13.8]} 31. Rfd2 {[%clk 0:00:23.1]} 31... Rad8 {[%clk
0:00:13.7]} 32. Ng6+ {[%clk 0:00:23.5]} 32... Ke6 {[%clk 0:00:13.5]} 33. Nxf8+
{[%clk 0:00:25.4]} 33... Rxf8 {[%clk 0:00:14.1]} 34. Rxd6+ {[%clk 0:00:26.6]}
34... Ke7 {[%clk 0:00:15.4]} 35. Rd7+ {[%clk 0:00:27.6]} 35... Ke8 {[%clk
0:00:14.7]} 36. Rd8+ {[%clk 0:00:28.6]} 36... Ke7 {[%clk 0:00:16.1]} 37. R1d7+
{[%clk 0:00:29.6]} 37... Ke6 {[%clk 0:00:17.6]} 38. Rxf8 {[%clk 0:00:26.2]}
38... Kxd7 {[%clk 0:00:18.8]} 39. c3 {[%clk 0:00:20.6]} 39... h5 {[%clk
0:00:19.8]} 40. b4 {[%clk 0:00:21.3]} 40... c4 {[%clk 0:00:20]} 41. Bc1 {[%clk
0:00:22.4]} 41... Ke7 {[%clk 0:00:20]} 42. Rb8 {[%clk 0:00:22.6]} 42... Ke6
{[%clk 0:00:18.6]} 43. Be3 {[%clk 0:00:23.2]} 43... Kd5 {[%clk 0:00:19.8]} 44.
Bxa7 {[%clk 0:00:23.4]} 44... Bb1 {[%clk 0:00:21.2]} 45. a3 {[%clk 0:00:23.3]}
45... Ke4 {[%clk 0:00:22]} 46. Bd4 {[%clk 0:00:23]} 46... f4+ {[%clk 0:00:22.2]}
47. Kf2 {[%clk 0:00:23.5]} 47... g3+ {[%clk 0:00:23.2]} 48. Kg1 {[%clk
0:00:24.2]} 48... Kd3 {[%clk 0:00:23.6]} 49. Rxb5 {[%clk 0:00:24.2]} 49... h4
{[%clk 0:00:23.5]} 50. Rf5 {[%clk 0:00:23.3]} 50... Ke4 {[%clk 0:00:24.7]} 51.
Re5+ {[%clk 0:00:23.8]} 51... Kd3 {[%clk 0:00:26.2]} 52. b5 {[%clk 0:00:25.1]}
52... h3 {[%clk 0:00:24.6]} 53. gxh3 {[%clk 0:00:26.2]} 53... f3 {[%clk
0:00:26.1]} 54. b6 {[%clk 0:00:27.3]} 54... Kd2 {[%clk 0:00:22.7]} 55. b7 {[%clk
0:00:27.7]} 55... Bd3 {[%clk 0:00:23.7]} 56. b8=Q {[%clk 0:00:27.7]} 56... f2+
{[%clk 0:00:25.2]} 57. Bxf2 {[%clk 0:00:28.9]} 57... gxf2+ {[%clk 0:00:27.1]}
58. Kxf2 {[%clk 0:00:30]} 58... Kxc3 {[%clk 0:00:29]} 59. Qb4+ {[%clk
0:00:30.4]} 59... Kc2 {[%clk 0:00:29.8]} 60. Re2+ {[%clk 0:00:30.7]} 60... Bxe2
{[%clk 0:00:29.9]} 61. Kxe2 {[%clk 0:00:32]} 61... c3 {[%clk 0:00:31.4]} 62. Ke3
{[%clk 0:00:30.3]} 62... Kd1 {[%clk 0:00:31.5]} 63. Kd3 {[%clk 0:00:31.1]} 63...
c2 {[%clk 0:00:31.6]} 64. Qd2# {[%clk 0:00:31.2]} 1-0

[Event "*** Titled Tuesday Blitz"]
[Site "Chess.com"]
[Date "2019.03.05"]
[Round "5"]
[White "mouseWLZ"]
[Black "Chess_for_enjoy"]
[Result "1-0"]
[WhiteElo "2501"]
[BlackElo "2621"]
[TimeControl "180+2"]
[EndTime "14:14:15 PST"]
[Termination "mouseWLZ won by resignation"]

1. d4 {[%clk 0:03:01.9]} 1... Nf6 {[%clk 0:03:00.3]} 2. Nf3 {[%clk 0:03:01.6]}
2... d5 {[%clk 0:03:00.9]} 3. g3 {[%clk 0:03:02.1]} 3... Bf5 {[%clk 0:03:01.4]}
4. Bg2 {[%clk 0:03:03.4]} 4... c6 {[%clk 0:03:02.6]} 5. O-O {[%clk 0:03:05]}
5... e6 {[%clk 0:03:04]} 6. c4 {[%clk 0:03:06.4]} 6... Nbd7 {[%clk 0:03:03.7]}
7. Nc3 {[%clk 0:03:07.6]} 7... Be7 {[%clk 0:03:04.5]} 8. b3 {[%clk 0:03:05.7]}
8... h6 {[%clk 0:03:04.2]} 9. Bb2 {[%clk 0:03:06.6]} 9... O-O {[%clk 0:03:03.7]}
10. Rc1 {[%clk 0:03:06.6]} 10... Re8 {[%clk 0:03:02.2]} 11. a3 {[%clk
0:03:07.4]} 11... Bf8 {[%clk 0:02:59.5]} 12. cxd5 {[%clk 0:03:08.6]} 12... exd5
{[%clk 0:03:00.4]} 13. b4 {[%clk 0:03:09.8]} 13... a6 {[%clk 0:03:00.8]} 14. Na4
{[%clk 0:03:03.5]} 14... Nb6 {[%clk 0:02:58.1]} 15. Nxb6 {[%clk 0:02:58.2]}
15... Qxb6 {[%clk 0:03:00]} 16. Ne5 {[%clk 0:03:00]} 16... Rad8 {[%clk
0:02:58.8]} 17. Qb3 {[%clk 0:02:28]} 17... Ne4 {[%clk 0:02:54.4]} 18. Rcd1
{[%clk 0:02:20.4]} 18... Nd6 {[%clk 0:02:54.9]} 19. Kh1 {[%clk 0:02:16.2]} 19...
f6 {[%clk 0:02:50.4]} 20. Nd3 {[%clk 0:01:58.1]} 20... Nc4 {[%clk 0:02:50.7]}
21. e3 {[%clk 0:01:54]} 21... Kh8 {[%clk 0:02:40.4]} 22. Nc5 {[%clk 0:01:51.1]}
22... a5 {[%clk 0:02:30.3]} 23. Rfe1 {[%clk 0:01:44]} 23... axb4 {[%clk
0:02:28]} 24. axb4 {[%clk 0:01:44.9]} 24... Ra8 {[%clk 0:02:28.9]} 25. Bc1
{[%clk 0:01:45.7]} 25... Ra1 {[%clk 0:02:22.4]} 26. e4 {[%clk 0:01:46.1]} 26...
Bg4 {[%clk 0:02:00.7]} 27. f3 {[%clk 0:01:46.3]} 27... Bh5 {[%clk 0:01:59.6]}
28. g4 {[%clk 0:01:14.1]} 28... Bf7 {[%clk 0:01:57.1]} 29. Bf4 {[%clk
0:01:07.5]} 29... Rxd1 {[%clk 0:01:56.5]} 30. Rxd1 {[%clk 0:00:56.3]} 30... Kg8
{[%clk 0:01:47.6]} 31. Qc3 {[%clk 0:00:57.4]} 31... Nd6 {[%clk 0:01:28.1]} 32.
Nd7 {[%clk 0:00:52.6]} 32... Qd8 {[%clk 0:01:27]} 33. Nxf8 {[%clk 0:00:52.7]}
33... Rxf8 {[%clk 0:01:28.9]} 34. Qc5 {[%clk 0:00:50.2]} 34... Nb5 {[%clk
0:01:25.1]} 35. e5 {[%clk 0:00:33.6]} 35... fxe5 {[%clk 0:01:22.2]} 36. Bxe5
{[%clk 0:00:34.7]} 36... Be6 {[%clk 0:01:16.3]} 37. h3 {[%clk 0:00:33.9]} 37...
Qh4 {[%clk 0:01:03.4]} 38. Kh2 {[%clk 0:00:28.4]} 38... Bc8 {[%clk 0:00:48.8]}
39. Bg3 {[%clk 0:00:26.5]} 39... Qf6 {[%clk 0:00:46.6]} 40. Be5 {[%clk
0:00:26.4]} 40... Qh4 {[%clk 0:00:47.3]} 41. Bg3 {[%clk 0:00:21.3]} 41... Qd8
{[%clk 0:00:39.9]} 42. Re1 {[%clk 0:00:20.8]} 42... Na3 {[%clk 0:00:32.5]} 43.
f4 {[%clk 0:00:19.3]} 43... Nc4 {[%clk 0:00:32.3]} 44. f5 {[%clk 0:00:20.6]}
44... Re8 {[%clk 0:00:29.3]} 45. Rxe8+ {[%clk 0:00:20.3]} 45... Qxe8 {[%clk
0:00:31.2]} 46. b5 {[%clk 0:00:21.3]} 46... Bd7 {[%clk 0:00:30.2]} 47. bxc6
{[%clk 0:00:22.1]} 47... bxc6 {[%clk 0:00:29.7]} 48. f6 {[%clk 0:00:22]} 48...
gxf6 {[%clk 0:00:29.1]} 49. Qa7 {[%clk 0:00:20.7]} 49... Ne3 {[%clk 0:00:26.3]}
50. Qa2 {[%clk 0:00:15.8]} 50... Kg7 {[%clk 0:00:19.9]} 51. Qf2 {[%clk
0:00:15.1]} 51... Bxg4 {[%clk 0:00:16.5]} 52. Bf4 {[%clk 0:00:16.6]} 52... Nxg2
{[%clk 0:00:03.1]} 53. Qxg2 {[%clk 0:00:18.5]} 53... h5 {[%clk 0:00:04.3]} 54.
hxg4 {[%clk 0:00:19.7]} 54... h4 {[%clk 0:00:04.9]} 55. g5 {[%clk 0:00:19.9]}
55... f5 {[%clk 0:00:03.1]} 56. g6 {[%clk 0:00:19.2]} 56... Qe1 {[%clk
0:00:02.8]} 57. Be5+ {[%clk 0:00:19.9]} 57... Kg8 {[%clk 0:00:03.6]} 58. g7
{[%clk 0:00:20.9]} 58... Qe2 {[%clk 0:00:03.8]} 59. Qxe2 {[%clk 0:00:20.7]} 1-0

[Event "*** Titled Tuesday Blitz"]
[Site "Chess.com"]
[Date "2019.03.05"]
[Round "5"]
[White "cherryandmint"]
[Black "GataKamsky1974"]
[Result "0-1"]
[WhiteElo "2629"]
[BlackElo "2837"]
[TimeControl "180+2"]
[EndTime "14:14:18 PST"]
[Termination "GataKamsky1974 won by resignation"]

1. e4 {[%clk 0:03:01.9]} 1... c5 {[%clk 0:03:00.4]} 2. Nf3 {[%clk 0:03:03.3]}
2... e6 {[%clk 0:03:01.9]} 3. d4 {[%clk 0:03:04.9]} 3... cxd4 {[%clk 0:03:03.5]}
4. Nxd4 {[%clk 0:03:06.8]} 4... a6 {[%clk 0:03:05.1]} 5. g3 {[%clk 0:03:08]}
5... Nc6 {[%clk 0:02:59.9]} 6. Bg2 {[%clk 0:03:08.7]} 6... Bc5 {[%clk 0:02:54]}
7. Nb3 {[%clk 0:02:57]} 7... Ba7 {[%clk 0:02:54.7]} 8. O-O {[%clk 0:02:45.5]}
8... Nf6 {[%clk 0:02:54.5]} 9. Qe2 {[%clk 0:02:42.1]} 9... d6 {[%clk 0:02:40.4]}
10. c4 {[%clk 0:02:23.5]} 10... O-O {[%clk 0:02:40.4]} 11. Nc3 {[%clk 0:02:24]}
11... e5 {[%clk 0:02:40]} 12. Be3 {[%clk 0:02:13.2]} 12... Bg4 {[%clk
0:02:40.7]} 13. Qd2 {[%clk 0:02:12.3]} 13... Bxe3 {[%clk 0:02:23.2]} 14. Qxe3
{[%clk 0:02:14.2]} 14... a5 {[%clk 0:02:19.7]} 15. Na4 {[%clk 0:02:08.1]} 15...
Qe7 {[%clk 0:02:05.5]} 16. h3 {[%clk 0:02:06.8]} 16... Be6 {[%clk 0:02:05.9]}
17. Nb6 {[%clk 0:02:04.6]} 17... Ra6 {[%clk 0:02:05.8]} 18. Nd5 {[%clk 0:01:39]}
18... Qd8 {[%clk 0:02:00.5]} 19. Rad1 {[%clk 0:01:16.5]} 19... a4 {[%clk
0:02:00.2]} 20. Nc1 {[%clk 0:01:16.9]} 20... Bxd5 {[%clk 0:01:53.4]} 21. cxd5
{[%clk 0:01:16.9]} 21... Nd4 {[%clk 0:01:54.9]} 22. Ne2 {[%clk 0:01:17]} 22...
Nxe2+ {[%clk 0:01:54.1]} 23. Qxe2 {[%clk 0:01:18.9]} 23... Qb6 {[%clk
0:01:53.2]} 24. Rc1 {[%clk 0:01:20.2]} 24... Nd7 {[%clk 0:01:52.3]} 25. Rc4
{[%clk 0:01:18.4]} 25... Ra5 {[%clk 0:01:52]} 26. Rfc1 {[%clk 0:01:18.8]} 26...
Nc5 {[%clk 0:01:46]} 27. h4 {[%clk 0:01:18.4]} 27... Rb5 {[%clk 0:01:46.6]} 28.
R1c2 {[%clk 0:01:19.7]} 28... Rb4 {[%clk 0:01:40.1]} 29. h5 {[%clk 0:01:19.5]}
29... Rxc4 {[%clk 0:01:39]} 30. Qxc4 {[%clk 0:01:19.2]} 30... h6 {[%clk
0:01:24]} 31. a3 {[%clk 0:01:00]} 31... Ra8 {[%clk 0:01:22.1]} 32. Bf1 {[%clk
0:00:52.5]} 32... Qb3 {[%clk 0:01:22.1]} 33. Kg2 {[%clk 0:00:46.4]} 33... Qb6
{[%clk 0:01:04.7]} 34. f3 {[%clk 0:00:37.8]} 34... Rf8 {[%clk 0:01:04.5]} 35.
Qb4 {[%clk 0:00:37.8]} 35... Qd8 {[%clk 0:01:01.7]} 36. Qd2 {[%clk 0:00:21.8]}
36... f5 {[%clk 0:00:55.2]} 37. exf5 {[%clk 0:00:22]} 37... Rxf5 {[%clk
0:00:56.3]} 38. g4 {[%clk 0:00:20.7]} 38... Rf4 {[%clk 0:00:54.7]} 39. Rc4
{[%clk 0:00:21.9]} 39... Rf8 {[%clk 0:00:50.4]} 40. f4 {[%clk 0:00:18]} 40...
exf4 {[%clk 0:00:48.7]} 41. Rxf4 {[%clk 0:00:19.9]} 41... Rxf4 {[%clk 0:00:40]}
42. Qxf4 {[%clk 0:00:20.6]} 42... Qe7 {[%clk 0:00:40.2]} 43. Kf2 {[%clk
0:00:14.9]} 43... Qh4+ {[%clk 0:00:38.7]} 44. Kg2 {[%clk 0:00:13.7]} 44... Qe7
{[%clk 0:00:38.7]} 45. Bb5 {[%clk 0:00:12.3]} 45... Qe5 {[%clk 0:00:28]} 46.
Qxe5 {[%clk 0:00:12.3]} 46... dxe5 {[%clk 0:00:29.2]} 47. Kf3 {[%clk 0:00:07.9]}
47... Kf7 {[%clk 0:00:30.3]} 48. Bc4 {[%clk 0:00:07.7]} 48... Ke7 {[%clk
0:00:31.2]} 49. g5 {[%clk 0:00:09.2]} 49... hxg5 {[%clk 0:00:24.1]} 50. Kg4
{[%clk 0:00:10.8]} 50... Kf6 {[%clk 0:00:24.6]} 51. d6 {[%clk 0:00:10.9]} 51...
e4 {[%clk 0:00:25.9]} 52. Bb5 {[%clk 0:00:11.4]} 52... b6 {[%clk 0:00:26.8]} 53.
d7 {[%clk 0:00:12.1]} 53... Ke7 {[%clk 0:00:26.3]} 54. Kxg5 {[%clk 0:00:13.7]}
54... e3 {[%clk 0:00:27.6]} 55. Kg6 {[%clk 0:00:14]} 55... Ne6 {[%clk
0:00:26.3]} 56. Kh7 {[%clk 0:00:06.4]} 56... Nf4 {[%clk 0:00:23.8]} 57. Kxg7
{[%clk 0:00:06.7]} 57... Nxh5+ {[%clk 0:00:24.9]} 58. Kg6 {[%clk 0:00:07.9]}
58... e2 {[%clk 0:00:25.4]} 59. Bxe2 {[%clk 0:00:08.5]} 59... Nf4+ {[%clk
0:00:25.5]} 60. Kf5 {[%clk 0:00:10.1]} 60... Nxe2 {[%clk 0:00:26.7]} 61. Ke4
{[%clk 0:00:11.8]} 61... Kxd7 {[%clk 0:00:26.9]} 62. Kd3 {[%clk 0:00:13.5]}
62... Nf4+ {[%clk 0:00:27.1]} 63. Kc4 {[%clk 0:00:15.1]} 63... Kc6 {[%clk
0:00:28.1]} 64. Kb4 {[%clk 0:00:16.4]} 64... b5 {[%clk 0:00:29.1]} 65. b3 {[%clk
0:00:17.8]} 65... axb3 {[%clk 0:00:30.3]} 66. Kxb3 {[%clk 0:00:19.2]} 66... Nd3
{[%clk 0:00:31.8]} 67. Kc3 {[%clk 0:00:14.6]} 67... Nc5 {[%clk 0:00:33.7]} 68.
Kb4 {[%clk 0:00:16]} 68... Na4 {[%clk 0:00:34.8]} 0-1